[Event "American Cup Blitz 2024"]
[Site "Saint Louis"]
[Date "2024.03.21"]
[Round "6.7"]
[White "Gledura, Benjamin"]
[Black "Quesada Perez, Yuniesky"]
[Result "0-1"]
[ECO "A07"]
[WhiteElo "2616"]
[BlackElo "2591"]
[Annotator "RC"]
[PlyCount "100"]
[EventDate "2024.03.21"]
[EventType "swiss"]
[EventCountry "USA"]
[SourceTitle "playchess.com"]
[Source "ChessBase"]
[SourceQuality "1"]
[TimeControl "180+2"]

1. Nf3 {[%emt 0:00:03]} d5 {[%emt 0:00:02]} 2. g3 {[%emt 0:00:02]} Bg4 {[%emt 0:00:02]} 3. Bg2 {[%emt 0:00:01]} Nd7 {[%emt 0:00:01]} 4. d4 {[%emt 0:00:08]} e6 {[%emt 0:00:07]} 5. O-O {[%emt 0:00:03]} Bd6 {[%emt 0:00:04]} 6. c4 {[%emt 0:00:04]} c6 {[%emt 0:00:01]} 7. h3 {[%emt 0:00:07]} Bh5 {[%emt 0:00:02]} 8. Nc3 {[%emt 0:00:34]} f5 {[%emt 0:00:24]} 9. Qb3 {[%emt 0:00:07]} Rb8 {[%emt 0:00:03]} 10. Qc2 {[%emt 0:00:33]} Ne7 {[%emt 0:00:44]} 11. Rb1 {[%emt 0:00:17]} O-O {[%emt 0:00:12]} 12. b4 {[%emt 0:00:23]} f4 {[%emt 0:00:19]} 13. e4 {[%emt 0:00:25]} Bxf3 {[%emt 0:00:52]} 14. Bxf3 {[%emt 0:00:01]} fxg3 {[%emt 0:00:01]} 15. Bg4 {[%emt 0:00:07]} gxf2+ 16. Rxf2 {[%emt 0:00:01]} Rxf2 {[%emt 0:00:07]} 17. Qxf2 {[%emt 0:00:03]} e5 {[%emt 0:00:08]} 18. Bg5 {[%emt 0:00:10]} exd4 {[%emt 0:00:05]} 19. Qxd4 {[%emt 0:00:09]} Be5 {[%emt 0:00:01]} 20. Qd3 {[%emt 0:00:03]} d4 {[%emt 0:00:03]} 21. Ne2 {[%emt 0:00:02]} Nf6 {[%emt 0:00:02]} 22. Rf1 {[%emt 0:00:05]} Ng6 {[%emt 0:00:03]} 23. Bf5 {[%emt 0:00:06]} Qe7 {[%emt 0:00:03]} 24. c5 {[%emt 0:00:03]} Rd8 {[%emt 0:00:02]} 25. h4 {[%emt 0:00:02]} Nf8 {[%emt 0:00:03]} 26. h5 {[%emt 0:00:03]} h6 {[%emt 0:00:01]} 27. Bh4 {[%emt 0:00:01]} Kh8 {[%emt 0:00:02]} 28. Kh1 {[%emt 0:00:07]} Qf7 {[%emt 0:00:05]} 29. Qf3 {[%emt 0:00:02]} d3 {[%emt 0:00:02]} 30. Ng3 {[%emt 0:00:04]} d2 {[%emt 0:00:04]} 31. Rd1 {[%emt 0:00:01]} Qxa2 {[%emt 0:00:02]} 32. Nf1 {[%emt 0:00:02]} Ne6 {[%emt 0:00:05]} 33. Ne3 {[%emt 0:00:05]} Qb3 {[%emt 0:00:06]} 34. Bxe6 {[%emt 0:00:01]} Qxe6 {[%emt 0:00:01]} 35. Nf5 {[%emt 0:00:01]} Nh7 {[%emt 0:00:04]} 36. Qg4 {[%emt 0:00:03]} Rd7 {[%emt 0:00:01]} 37. Bf2 {[%emt 0:00:03]} Qf7 {[%emt 0:00:03]} 38. Be3 {[%emt 0:00:02]} Nf6 {[%emt 0:00:01]} 39. Qg6 {[%emt 0:00:01]} Qxg6 {[%emt 0:00:02]} 40. hxg6 {[%emt 0:00:01]} Nxe4 {[%emt 0:00:01]} 41. Kg2 {[%emt 0:00:01]} Bc3 {[%emt 0:00:02]} 42. Kf3 {[%emt 0:00:02]} Nf6 {[%emt 0:00:02]} 43. Nd6 {[%emt 0:00:01]} Bxb4 {[%emt 0:00:02]} 44. Rb1 {[%emt 0:00:02]} a5 {[%emt 0:00:01]} 45. Ke2 {[%emt 0:00:01]} Nd5 {[%emt 0:00:02]} 46. Bd4 {[%emt 0:00:02]} Nf4+ {[%emt 0:00:02]} 47. Kf3 {[%emt 0:00:02]} Nxg6 {[%emt 0:00:01]} 48. Rh1 {[%emt 0:00:02]} Kh7 {[%emt 0:00:01]} 49. Ke4 {[%emt 0:00:01]} Re7+ {[%emt 0:00:02]} 50. Kd3 {[%emt 0:00:02]} Re1 {[%emt 0:00:01]} 0-1

[Event "American Cup Blitz 2024"]
[Site "Saint Louis"]
[Date "2024.03.21"]
[Round "6.8"]
[White "Shankland, Sam"]
[Black "Kevlishvili, Robby"]
[Result "1-0"]
[ECO "D45"]
[WhiteElo "2674"]
[BlackElo "2524"]
[Annotator "TA"]
[PlyCount "139"]
[EventDate "2024.03.21"]
[EventType "swiss"]
[EventCountry "USA"]
[SourceTitle "playchess.com"]
[Source "ChessBase"]
[SourceQuality "1"]
[TimeControl "180+2"]

{[%evp 65,139,0,0,-82,-70,-128,0,0,0,0,0,0,0,-44,0,0,0,0,0,0,83,89,85,85,139,127,321,226,349,345,375,374,444,447,416,424,481,476,391,187,193,177,200,192,181,43,79,23,106,96,100,104,111,103,880,786,725,715,833,821,1007,943,434,0,768,491,1760,1782,29979,29980,29976,7200,6201,6057,29989,29990]} 1. d4 {[%emt 0:00:01]} d5 {[%emt 0:00:04]} 2. c4 {[%emt 0:00:01]} c6 {[%emt 0:00:01]} 3. Nc3 {[%emt 0:00:04]} Nf6 {[%emt 0:00:02]} 4. e3 {[%emt 0:00:01]} e6 {[%emt 0:00:01]} 5. Nf3 {[%emt 0:00:02]} Nbd7 {[%emt 0:00:01]} 6. Be2 {[%emt 0:00:01]} Bd6 {[%emt 0:00:03]} 7. O-O {[%emt 0:00:03]} O-O {[%emt 0:00:02]} 8. b3 {[%emt 0:00:03]} b6 {[%emt 0:00:02]} 9. Bb2 {[%emt 0:00:02]} Bb7 {[%emt 0:00:01]} 10. Bd3 {[%emt 0:00:02]} h6 {[%emt 0:00:06]} 11. Rc1 {[%emt 0:00:03]} Rc8 {[%emt 0:00:03]} 12. Re1 {[%emt 0:00:07]} c5 {[%emt 0:00:04]} 13. cxd5 {[%emt 0:00:02]} exd5 {[%emt 0:00:11]} 14. Bf5 {[%emt 0:00:15]} c4 {[%emt 0:00:39]} 15. bxc4 {[%emt 0:00:02]} Rxc4 {[%emt 0:00:05]} 16. Qb3 {[%emt 0:00:21]} a6 {[%emt 0:00:19]} 17. a4 {[%emt 0:00:19]} Qe7 {[%emt 0:00:18]} 18. Bd3 {[%emt 0:00:56]} Rc7 {[%emt 0:00:06]} 19. Rc2 {[%emt 0:00:03]} Rfc8 {[%emt 0:00:06]} 20. Rec1 {[%emt 0:00:01]} Qe6 {[%emt 0:00:05]} 21. g3 {[%emt 0:00:08]} Qg4 {[%emt 0:00:09]} 22. Be2 {[%emt 0:00:06]} Qf5 {[%emt 0:00:02]} 23. Nh4 {[%emt 0:00:05]} Qe6 {[%emt 0:00:02]} 24. Bf1 {[%emt 0:00:06]} Ne4 {[%emt 0:00:10]} 25. Nxe4 {[%emt 0:00:04]} Rxc2 {[%emt 0:00:20]} 26. Rxc2 {[%emt 0:00:07]} Rxc2 {[%emt 0:00:01]} 27. Nxd6 {[%emt 0:00:36]} Rxb2 {[%emt 0:00:02]} 28. Qxb2 {[%emt 0:00:01]} Qxd6 {[%emt 0:00:01]} 29. Nf5 {[%emt 0:00:01]} Qe6 {[%emt 0:00:13]} 30. Bd3 {[%emt 0:00:04]} Nf6 {[%emt 0:00:13]} 31. Qc2 {[%emt 0:00:04]} Ne4 {[%emt 0:00:07]} 32. Nh4 {[%emt 0:00:08]} Qd7 {[%emt 0:00:06]} 33. Ng2 {[%emt 0:00:03]} Bc6 {[%emt 0:00:04]} 34. Nf4 {[%emt 0:00:01]} (34. Qb3 $11 {remains equal.}) 34... Bxa4 $17 {[%emt 0:00:01]} 35. Qb2 {[%emt 0:00:02]} (35. Qa2 $15) 35... Bb5 {[%emt 0:00:03]} (35... b5 $17 36. Qc1 a5) 36. Bxb5 $11 axb5 {[%emt 0:00:01]} ({Reject} 36... Qxb5 $6 37. Qxb5 axb5 38. Nxd5 $16) 37. Qb3 {[%emt 0:00:03]} Nf6 {[%emt 0:00:01]} 38. Nd3 {[%emt 0:00:01]} Qc6 {[%emt 0:00:02]} 39. Qb2 {[%emt 0:00:02]} Qc4 {[%emt 0:00:02]} 40. Ne5 {[%emt 0:00:01]} Qa4 {[%emt 0:00:02]} 41. Qc1 {[%emt 0:00:02]} Qa8 {[%emt 0:00:05]} 42. Qc7 {[%emt 0:00:01]} Qe8 {[%emt 0:00:08]} (42... Kh7 $11) 43. Qxb6 $16 {[%emt 0:00:02]} Ne4 {[%emt 0:00:05]} 44. Qb7 {[%emt 0:00:01]} Qe6 {[%emt 0:00:02]} ({Black should try} 44... Nc3) 45. Qxb5 $16 {[%emt 0:00:03]} f6 $2 {[%emt 0:00:01]} (45... h5 $16 {keeps fighting.} 46. Qb8+ Kh7) 46. Nd3 {[%emt 0:00:01]} Qf5 {[%emt 0:00:08]} (46... Kh7 {was called for.} 47. Nf4 Qg4) 47. Nf4 $18 {[%emt 0:00:02]} Nc3 {[%emt 0:00:01]} 48. Qb3 {[%emt 0:00:03]} Qb1+ {[%emt 0:00:04]} 49. Qxb1 {[%emt 0:00:01]} Nxb1 {[%emt 0:00:00]} 50. Nxd5 Kf7 51. Kf1 {[%emt 0:00:01]} Ke6 {[%emt 0:00:02]} 52. e4 {[%emt 0:00:03]} (52. Nf4+ $142 Ke7 53. f3) 52... Nd2+ $18 {[%emt 0:00:02]} 53. Ke2 {[%emt 0:00:01]} Nxe4 {[%emt 0:00:00]} 54. Ne3 {[%emt 0:00:02]} h5 {[%emt 0:00:04]} 55. h4 {[%emt 0:00:03]} (55. d5+ $18 Kd7 56. f3) 55... g5 $1 $14 {[%emt 0:00:03]} 56. Ng2 {[%emt 0:00:05]} (56. g4 $16 hxg4 57. h5) 56... Kd5 {[%emt 0:00:03]} (56... Kf5 $11) 57. Ke3 $16 {[%emt 0:00:01]} Nd6 {[%emt 0:00:01]} 58. Kd3 {[%emt 0:00:01]} Ke6 {[%emt 0:00:02] [#]} 59. Ne3 $1 {[%emt 0:00:03]} gxh4 $2 {[%emt 0:00:03][%mdl 8192]} (59... Ke7 $16 60. d5 Kd8) 60. gxh4 {[%emt 0:00:01]} Nf7 {[%emt 0:00:04]} 61. Ke4 {[%emt 0:00:01]} Nd6+ {[%emt 0:00:02]} 62. Kf4 {[%emt 0:00:01]} Nb5 {[%emt 0:00:00]} 63. d5+ {[%emt 0:00:02]} Kf7 {[%emt 0:00:01]} 64. Kf5 $2 {[%emt 0:00:01]} (64. Ke4 $18) 64... Nd4+ $2 {[%emt 0:00:01][%mdl 8192]} (64... Nd6+ $11 65. Kf4 Nb5) 65. Ke4 $18 {[%emt 0:00:02]} Nb5 {[%emt 0:00:01]} (65... Nb3 $142 66. Nf5 Nd2+ 67. Kd4 Nf3+ 68. Kc5 Ke8) 66. Nf5 $18 {[%emt 0:00:01]} Kg6 {[%emt 0:00:01]} 67. d6 {[%emt 0:00:03]} Nc3+ {[%emt 0:00:01]} 68. Kd3 {[%emt 0:00:02]} (68. Kd4 $142 Kxf5 69. d7 (69. Kxc3 Ke6 70. Kd3 Kxd6 71. Ke4 Ke6 72. Kf4 Ke7 73. Kf5 Kf7) 69... Ne4 70. Ke3 (70. d8=R Kf4 $14) (70. d8=Q Nxf2 71. Qd7+ Kf4 72. Qd6+ Kf5 73. Qc6 Kf4 74. Qxf6+ Kg3 75. Qe5+ Kh3) 70... Nd6 71. d8=Q (71. d8=B Ke6 $15) 71... Nc4+ 72. Ke2 Ne5 73. Qe8) 68... Na4 $18 {[%emt 0:00:06]} 69. Kd4 {[%emt 0:00:04]} Kxf5 {[%emt 0:00:03]} 70. d7 {[%emt 0:00:00]} 1-0

[Event "American Cup Blitz 2024"]
[Site "Saint Louis"]
[Date "2024.03.21"]
[Round "6.9"]
[White "Theodorou, Nikolas"]
[Black "Boros, Denes"]
[Result "1/2-1/2"]
[ECO "A46"]
[WhiteElo "2622"]
[BlackElo "2402"]
[Annotator "TA"]
[PlyCount "149"]
[EventDate "2024.03.21"]
[EventType "swiss"]
[EventCountry "USA"]
[SourceTitle "playchess.com"]
[Source "ChessBase"]
[SourceQuality "1"]
[TimeControl "180+2"]

{[%evp 57,149,-119,-111,-220,-226,-216,-212,-215,-210,-228,-116,-118,-125,-122,-122,-120,-121,-143,-154,-154,-154,-234,0,-70,-51,-58,-44,-177,-177,-177,-39,-177,-124,-177,-175,-239,-238,-269,-269,-292,-267,-308,-233,-266,-248,-296,-241,-291,0,-278,-271,-329,-325,-308,-326,-344,-341,-360,-241,-372,-371,-353,-284,-281,-249,-327,-24,-26,-8,-8,-8,-8,-8,-8,-8,-8,-8,-8,-8,-8,-8,-8,-5,-5,-5,-5,-5,-5,0,0,0,0,0,0]} 1. Nf3 {[%emt 0:00:42]} Nf6 {[%emt 0:00:02]} 2. b3 {[%emt 0:00:01]} d6 {[%emt 0:00:05]} 3. d4 {[%emt 0:00:02]} Bg4 {[%emt 0:00:02]} 4. Nbd2 {[%emt 0:00:01]} c6 {[%emt 0:00:04]} 5. Bb2 {[%emt 0:00:03]} Nbd7 {[%emt 0:00:05]} 6. h3 {[%emt 0:00:07] A46: Damenbauernspiele.} Bh5 {[%emt 0:00:01]} 7. e4 $146 {[%emt 0:00:09]} ({Predecessor:} 7. e3 Qc7 8. Be2 e5 9. O-O Be7 10. dxe5 dxe5 11. Nc4 Bxf3 12. Bxf3 O-O 13. a4 {1-0 Martin Duque,J (2424)-Boros,D (2430) Titled Tuesday intern op 22 Mar Early blitz 2022 (8)}) 7... Qa5 {[%emt 0:00:09]} 8. Bd3 {[%emt 0:00:36]} e6 {[%emt 0:00:13]} 9. g4 {[%emt 0:00:38]} Bg6 {[%emt 0:00:01]} 10. Qe2 {[%emt 0:00:01]} Be7 {[%emt 0:00:06]} 11. a3 {[%emt 0:00:07]} h6 {[%emt 0:00:22]} 12. Rg1 {[%emt 0:00:10]} c5 {[%emt 0:00:20]} 13. Kf1 {[%emt 0:00:07]} cxd4 {[%emt 0:00:02]} 14. Nxd4 {[%emt 0:00:02]} d5 {[%emt 0:00:23]} 15. b4 {[%emt 0:00:19]} Qb6 {[%emt 0:00:08]} 16. Re1 {[%emt 0:00:04]} dxe4 {[%emt 0:00:06]} 17. Nxe4 {[%emt 0:00:01]} Bxe4 {[%emt 0:00:04]} 18. Bxe4 {[%emt 0:00:01]} Nxe4 {[%emt 0:00:02]} 19. Qxe4 {[%emt 0:00:01]} Nf6 {[%emt 0:00:15]} 20. Qf3 {[%emt 0:00:02]} Rd8 {[%emt 0:00:15]} 21. c3 {[%emt 0:00:01]} Qc7 {[%emt 0:00:10]} 22. Kg2 {[%emt 0:00:07]} Nd5 {[%emt 0:00:03]} 23. Kh1 {[%emt 0:00:01]} O-O {[%emt 0:00:07]} 24. Rd1 {[%emt 0:00:05]} a6 {[%emt 0:00:01]} 25. Rge1 {[%emt 0:00:01]} Bf6 {[%emt 0:00:01]} 26. Nb3 {[%emt 0:00:06]} Rc8 {[%emt 0:00:10]} 27. Rc1 {[%emt 0:00:02]} Rfd8 {[%emt 0:00:02]} 28. Nc5 {[%emt 0:00:01]} b6 {[%emt 0:00:02]} 29. Ne4 {[%emt 0:00:02]} Qc4 {[%emt 0:00:04]} 30. Qe2 {[%emt 0:00:01]} (30. Rcd1 $17) 30... Qxe2 $19 {[%emt 0:00:04]} 31. Rxe2 {[%emt 0:00:02]} Nf4 {[%emt 0:00:01]} 32. Nxf6+ {[%emt 0:00:05]} gxf6 {[%emt 0:00:01]} 33. Rec2 {[%emt 0:00:01]} Nxh3 {[%emt 0:00:06]} (33... Rd3 $19 34. c4 Rxh3+ (34... Nxh3 35. Bxf6 Rxa3 36. c5 $11) 35. Kg1 Kh7 36. Bxf6 Rxa3) 34. c4 $17 {[%emt 0:00:01]} e5 {[%emt 0:00:03]} 35. Kh2 {[%emt 0:00:10]} Nf4 {[%emt 0:00:02]} 36. c5 {[%emt 0:00:01]} bxc5 {[%emt 0:00:08]} 37. Rxc5 {[%emt 0:00:02]} Rxc5 {[%emt 0:00:01]} 38. bxc5 {[%emt 0:00:01] [#]} Rc8 $1 {[%emt 0:00:04]} (38... Rd2 39. c6 Nd5 (39... Rxb2 $2 40. c7 $18) (39... Rxf2+ $2 40. Kg3 $18) 40. Bc3 Rxf2+ 41. Kg3 $11) 39. c6 {[%emt 0:00:03]} (39. Rc4 $17 {kämpft weiter.}) 39... Nd5 $2 {[%emt 0:00:03]} (39... Nd3 $19 40. Rc2 Nxb2 41. Rxb2 Rxc6) 40. Kg3 {[%emt 0:00:03]} ({Günstiger ist} 40. Rc5 $11 Nf4 41. Bc3) 40... Ne7 {[%emt 0:00:01]} 41. c7 {[%emt 0:00:02]} Nd5 {[%emt 0:00:01]} 42. Rc6 {[%emt 0:00:01]} (42. Rc5 $15 Nf4 (42... Rxc7 $2 {ist das falsche Schlagen.} 43. Rxd5 Rc2 44. Rd8+ Kg7 45. Rb8 $18) (42... Nxc7 $2 43. Bc3 $18) 43. Bc1) 42... Rxc7 $19 {[%emt 0:00:03]} (42... Nxc7 $2 {verliert.} 43. Bc3 $18 (43. Rxf6 Nd5 $11)) 43. Rxa6 {[%emt 0:00:01]} Kg7 {[%emt 0:00:03]} (43... Rc2 $19 44. Ra8+ Kg7) 44. Rd6 {[%emt 0:00:04]} ({Weiss braucht} 44. Ra5 $1 $15 Rd7 45. Kh2) 44... Rc5 {[%emt 0:00:04]} (44... Nc3 $19 45. Kf3 Na4) 45. a4 {[%emt 0:00:03]} (45. Kf3 $17) 45... Ra5 $19 {[%emt 0:00:02]} 46. f3 {[%emt 0:00:03]} (46. Rc6 {war nötig.}) 46... Nf4 $1 $19 {[%emt 0:00:02]} 47. Rd2 {[%emt 0:00:07]} Rxa4 {[%emt 0:00:01]} 48. Kf2 {[%emt 0:00:01]} Rb4 {[%emt 0:00:01]} 49. Kg3 {[%emt 0:00:01]} Rb5 {[%emt 0:00:01]} 50. Ba3 {[%emt 0:00:01]} Rb1 {[%emt 0:00:04]} 51. Kf2 {[%emt 0:00:02]} Rh1 {[%emt 0:00:01]} 52. Ke3 {[%emt 0:00:00]} Rb1 $2 {[%emt 0:00:03]} ({Vorzuziehen ist} 52... Kg6 $19 {Zielt auf ...f5 ab.} 53. Bd6 h5 54. gxh5+ Kxh5 (54... Rxh5 $2 55. Bb4 $19)) 53. Be7 $2 {[%emt 0:00:04][%mdl 8192]} (53. Kf2 $11 {und Weiss muss sich keine Sorgen machen.} Rb3 54. Bd6) 53... Kg6 $19 {[%emt 0:00:03]} 54. Rd6 {[%emt 0:00:01]} Rb3+ {[%emt 0:00:02]} 55. Kf2 {[%emt 0:00:02]} Rb2+ {[%emt 0:00:01]} 56. Kf1 {[%emt 0:00:01]} Ne6 {[%emt 0:00:01]} 57. Ra6 {[%emt 0:00:04]} f5 {[%emt 0:00:02]} 58. Ra8 {[%emt 0:00:04]} (58. Bd6 {war angesagt.}) 58... fxg4 $19 {[%emt 0:00:03]} 59. fxg4 {[%emt 0:00:01]} Rb7 {[%emt 0:00:08]} 60. Bd6 {[%emt 0:00:04]} f6 {[%emt 0:00:04]} 61. Ra6 {[%emt 0:00:01]} Kg5 $2 {[%emt 0:00:02]} (61... Nf4 $19 {Und ...Kg5 würde nun gewinnen.} 62. Ra8 Kg5 63. Rg8+ Kh4) 62. Bxe5 $1 $11 {[%emt 0:00:01]} fxe5 {[%emt 0:00:11]} 63. Rxe6 {[%emt 0:00:02]} Rb5 {[%emt 0:00:02]} 64. Kf2 {[%emt 0:00:03]} Kf4 {[%emt 0:00:00]} 65. Rf6+ {[%emt 0:00:03]} Kxg4 {[%emt 0:00:01]} 66. Rxh6 {[%emt 0:00:01]} Kf4 {[%emt 0:00:01]} 67. Rh4+ {[%emt 0:00:01]} Kf5 {[%emt 0:00:01]} 68. Ra4 {[%emt 0:00:01]} Rb2+ {[%emt 0:00:01]} 69. Ke1 {[%emt 0:00:01]} e4 {[%emt 0:00:01]} 70. Ra3 {[%emt 0:00:01]} Kf4 {[%emt 0:00:01]} 71. Rc3 {[%emt 0:00:01]} Rg2 {[%emt 0:00:03]} 72. Ra3 {[%emt 0:00:01]} Rg3 {[%emt 0:00:02]} 73. Rxg3 {[%emt 0:00:03]} Kxg3 {[%emt 0:00:01]} 74. Ke2 {[%emt 0:00:01]} e3 {[%emt 0:00:00]} 75. Kxe3 {[%emt 0:00:01]} 1/2-1/2

[Event "American Cup Blitz 2024"]
[Site "Saint Louis"]
[Date "2024.03.21"]
[Round "6.10"]
[White "Rosen, Eric"]
[Black "Krasteva, Beloslava"]
[Result "1-0"]
[ECO "A46"]
[WhiteElo "2361"]
[BlackElo "2220"]
[Annotator "TA"]
[PlyCount "73"]
[EventDate "2024.03.21"]
[EventType "swiss"]
[EventCountry "USA"]
[SourceTitle "playchess.com"]
[Source "ChessBase"]
[SourceQuality "1"]
[TimeControl "180+2"]

{[%evp 9,73,14,33,16,35,20,19,18,16,12,21,12,41,43,36,37,45,32,51,36,50,47,80,39,42,35,62,43,70,56,65,59,89,87,89,88,91,83,93,95,128,85,114,127,100,56,56,58,67,73,85,92,103,75,96,78,637,628,866,841,947,915,2193,2080,29986,29987]} 1. d4 {[%emt 0:00:02]} Nf6 {[%emt 0:00:01]} 2. Bf4 {[%emt 0:00:01]} e6 {[%emt 0:00:06]} 3. e3 {[%emt 0:00:01]} c5 {[%emt 0:00:07]} 4. Nf3 {[%emt 0:00:01]} cxd4 {[%emt 0:00:03]} 5. exd4 {[%emt 0:00:01]} b6 {[%emt 0:00:01]} 6. Nbd2 {[%emt 0:00:04]} d6 {[%emt 0:00:12]} 7. Bd3 {[%emt 0:00:02]} Ba6 {[%emt 0:00:02]} 8. Nc4 {[%emt 0:00:11] The position is equal.} Be7 {[%emt 0:00:44]} 9. O-O {[%emt 0:00:02]} O-O {[%emt 0:00:02]} 10. Re1 {[%emt 0:00:01]} Nc6 {[%emt 0:00:15]} 11. c3 {[%emt 0:00:05][%cal Oc4a5]} Bb7 {[%emt 0:00:19]} 12. h3 {[%emt 0:00:05]} Rc8 {[%emt 0:00:02]} 13. a4 {[%emt 0:00:10]} Nb8 {[%emt 0:00:20]} 14. Qe2 {[%emt 0:00:10]} Qd7 {[%emt 0:00:16]} 15. Ne3 {[%emt 0:00:20]} Nd5 {[%emt 0:00:05]} 16. Bg3 {[%emt 0:00:14]} Nxe3 {[%emt 0:00:05]} 17. Qxe3 {[%emt 0:00:01]} Nc6 {[%emt 0:00:24]} 18. Qe2 {[%emt 0:00:53] White has more active pieces.} Bf6 {[%emt 0:00:03]} 19. Nd2 {[%emt 0:00:08]} d5 {[%emt 0:00:11]} 20. Nf3 {[%emt 0:00:04]} g6 {[%emt 0:00:02]} 21. h4 {[%emt 0:00:11]} h5 {[%emt 0:00:12]} 22. Bf4 {[%emt 0:00:01]} Bg7 {[%emt 0:00:03]} 23. Qd2 {[%emt 0:00:17]} Rce8 {[%emt 0:00:02]} 24. Re2 {[%emt 0:00:09]} Na5 {[%emt 0:00:01][%cal Bc6a5,Ba5c4,Bc4d6,Bd6f5][%mdl 32]} 25. Qc2 {[%emt 0:00:06] Wards off Nb3} Nc4 {[%emt 0:00:04]} 26. Rae1 {[%emt 0:00:07]} Nd6 {[%emt 0:00:03]} 27. Ng5 {[%emt 0:00:07] [#] Bxd6 would now be deadly.} Nf5 {[%emt 0:00:02]} 28. g3 $1 {[%emt 0:00:03]} Bf6 {[%emt 0:00:05]} 29. Nf3 $36 {[%emt 0:00:01][%mdl 2048] White is on the roll.} Bg7 {[%emt 0:00:01]} 30. Ne5 {[%emt 0:00:12]} Qc8 {[%emt 0:00:02]} 31. Bb5 {[%emt 0:00:02]} Re7 {[%emt 0:00:02][%cal Be8e7,Be7f7,Bf7f8][%mdl 32] Repels Bd7} 32. Bg5 {[%emt 0:00:02][%cal Oe5g6] [#] And now Nxg6! would win.} f6 $2 {[%emt 0:00:01][%mdl 8192] Black cannot hold the game after this.} (32... Rc7 $16) 33. Nxg6 $18 {[%emt 0:00:05]} Ref7 {[%emt 0:00:04]} 34. Nxf8 {[%emt 0:00:04]} Rxf8 {[%emt 0:00:03]} 35. Bf4 {[%emt 0:00:01]} Rf7 {[%emt 0:00:04]} 36. Rxe6 {[%emt 0:00:01]} Ne7 {[%emt 0:00:02]} 37. Rxe7 {[%emt 0:00:02] Weighted Error Value: White=0.11 (very precise) /Black=0.56.  Loses game:     	---       	Black=1      Inaccurate:     	White=3     	Black=8      OK:         	White=7     	Black=6      Best:        	White=1     	---        Strong:       	White=1     	---} 1-0

[Event "American Cup Blitz 2024"]
[Site "Saint Louis"]
[Date "2024.03.21"]
[Round "7.1"]
[White "Caruana, Fabiano"]
[Black "So, Wesley"]
[Result "1-0"]
[ECO "A21"]
[WhiteElo "2804"]
[BlackElo "2757"]
[Annotator "TA"]
[PlyCount "69"]
[EventDate "2024.03.21"]
[EventType "swiss"]
[EventCountry "USA"]
[SourceTitle "playchess.com"]
[Source "ChessBase"]
[SourceQuality "1"]
[TimeControl "180+2"]

{[%evp 9,69,5,6,0,1,4,18,16,36,20,32,32,22,22,33,27,41,27,35,40,71,70,128,133,141,121,129,126,145,126,126,112,126,108,143,133,215,167,212,202,214,209,235,113,199,183,486,442,493,122,117,128,104,122,185,190,180,187,214,223,1994,1911]} 1. c4 {[%emt 0:00:01]} e5 {[%emt 0:00:06]} 2. Nc3 {[%emt 0:00:01]} Bb4 {[%emt 0:00:02]} 3. Nd5 {[%emt 0:00:02]} Be7 {[%emt 0:00:01]} 4. Nf3 {[%emt 0:00:01]} d6 {[%emt 0:00:07]} 5. g3 {[%emt 0:00:01]} Nf6 {[%emt 0:00:02]} 6. Nc3 {[%emt 0:00:05]} O-O {[%emt 0:00:09]} 7. Bg2 {[%emt 0:00:01]} Re8 {[%emt 0:00:08]} 8. d4 {[%emt 0:00:06][%cal Bd2d4,Bd4d5][%mdl 32] The position is equal.} Nc6 {[%emt 0:00:21]} 9. d5 {[%emt 0:00:03]} Nb8 {[%emt 0:00:03]} 10. O-O {[%emt 0:00:03]} a5 {[%emt 0:00:02]} 11. e4 {[%emt 0:00:02]} Na6 {[%emt 0:00:03]} 12. h3 {[%emt 0:00:09]} Nc5 {[%emt 0:00:03]} 13. Qc2 {[%emt 0:00:02]} h6 {[%emt 0:00:12]} 14. Be3 {[%emt 0:00:01] Bxc5 is the strong threat.} Nfd7 {[%emt 0:00:06]} 15. b3 {[%emt 0:00:04][%cal Bb2b3,Bb3b4][%mdl 32]} Bg5 {[%emt 0:00:05]} (15... b6 $14) 16. Nxg5 $16 {[%emt 0:00:05]} hxg5 {[%emt 0:00:01]} 17. a3 {[%emt 0:00:07]} b6 {[%emt 0:00:18]} 18. b4 {[%emt 0:00:03]} Na6 {[%emt 0:00:06]} 19. Qd2 {[%emt 0:00:15]} f6 {[%emt 0:00:02]} 20. Nb5 {[%emt 0:00:02]} Nf8 {[%emt 0:00:10]} 21. bxa5 {[%emt 0:00:05] White has more active pieces.} bxa5 {[%emt 0:00:06]} 22. Qxa5 {[%emt 0:00:02]} Bd7 {[%emt 0:00:01]} (22... Nd7 $16 {was called for.} 23. Rfb1 g4 24. hxg4 Nb6 25. Nxd6 (25. Nxc7 Nd7 $16) 25... Qxd6) 23. Qc3 {[%emt 0:00:04]} Ng6 {[%emt 0:00:08]} 24. a4 {[%emt 0:00:13]} Qc8 {[%emt 0:00:10] [#]} 25. Na7 $1 {[%emt 0:00:29]} Qd8 {[%emt 0:00:18]} 26. a5 {[%emt 0:00:10]} (26. Qa5 $18) 26... Kf7 {[%emt 0:00:07]} (26... Nf4 $16 27. Kh2 (27. gxf4 gxf4 28. Bxf4 exf4 $14) 27... Nxg2) 27. c5 $18 {[%emt 0:00:23] Hoping for cxd6.} Rh8 $2 {[%emt 0:00:01]} (27... Rxa7 28. c6 Ra8) 28. cxd6 {[%emt 0:00:04]} cxd6 {[%emt 0:00:04]} 29. g4 $2 {[%emt 0:00:24]} (29. Rfb1 $18 {has better winning chances.}) 29... Nf4 $16 {[%emt 0:00:02] [#]} 30. Bxf4 {[%emt 0:00:01]} gxf4 {[%emt 0:00:05]} 31. Nc6 $36 {[%emt 0:00:02][%mdl 2048] Keeping Black busy.} Qc8 {[%emt 0:00:13]} (31... Qc7 $16 32. Rfb1 Nc5) 32. Rfb1 $18 {[%emt 0:00:01]} Nc5 {[%emt 0:00:02]} 33. Rb6 {[%emt 0:00:03]} Qc7 {[%emt 0:00:11]} 34. Rab1 {[%emt 0:00:20]} Na4 $2 {[%emt 0:00:21] [#]} (34... Qc8 35. Qa3 Qc7) 35. Nxe5+ $1 {[%emt 0:00:03][%mdl 512] Weighted Error Value: White=0.33/Black=0.38.  Missed win:     	White=1     	---        Mistake:       	White=1     	Black=6      Inaccurate:     	---       	Black=2      OK:         	White=14    	Black=4      Best:        	White=3     	Black=2      Brilliant:      	White=1     	---} 1-0